bitfinex/quotes_SOLUSD_20240613
["timestamp","ask_amount","ask_price","bid_price","bid_amount"]
[1718293674704,2.5156,147.08,147.03,0.51]
[1718293675076,27.47,147.14,147.03,0.51]
[1718293675276,20.0,147.13,147.04,0.17]
[1718293675575,0.17,147.12,146.99,15.5212]
[1718293675778,2.5161,147.06,146.99,18.0383]
[1718293675995,2.5163,147.04,146.99,15.5212]
[1718293676176,5.0314,147.08,146.95,5.0354]
[1718293676177,2.5167,147.02,146.95,2.5178]
[1718293676381,7.5482,147.06,146.96,8.6673]
[1718293676571,2.5167,147.02,146.96,6.1497]
[1718293677003,27.47,147.07,146.96,6.1497]
[1718293677299,2.5164,147.04,146.96,6.1497]
[1718293677502,2.5165,147.03,146.96,8.6672]
[1718293677795,2.5163,147.04,146.96,6.1497]
[1718293677986,2.5165,147.03,146.96,8.6672]
[1718293678572,5.0328,147.04,146.96,6.1497]
[1718293678918,5.2023,147.05,146.96,6.1497]
[1718293679074,20.0,147.04,146.93,15.0317]
[1718293679402,2.5168,147.01,146.94,2.518]
[1718293679605,2.5172,146.99,146.93,15.0317]
[1718293679788,2.5169,147.01,146.93,15.0317]
[1718293679990,2.5169,147.01,146.95,2.5178]
[1718293680194,2.5167,147.02,146.95,2.5178]
[1718293680395,20.0,147.04,146.93,15.0317]
[1718293680574,25.0328,147.04,146.93,15.0317]
[1718293680777,20.0,147.04,146.93,15.0317]
[1718293680979,19.0,147.05,146.95,5.0356]
[1718293681184,2.5167,147.02,146.94,0.17]
[1718293681380,2.5174,146.98,146.91,9.18]
[1718293681600,2.5173,146.98,146.91,6.6616]
[1718293681784,2.5172,146.99,146.92,2.5182]
[1718293682006,2.5172,146.99,146.87,16.4569]
[1718293682007,10.0704,146.97,146.87,18.9761]
[1718293682314,27.47,146.99,146.87,16.4569]
[1718293682501,5.0354,146.96,146.87,16.4569]
[1718293682684,0.17,146.97,146.87,16.4569]
[1718293683014,2.5179,146.95,146.87,18.976]
[1718293683186,2.5179,146.95,146.8,14.47672879]
[1718293683187,2.5189,146.89,146.82,24.0546]
[1718293683384,2.5188,146.9,146.83,2.5197]
[1718293683585,27.64,146.95,146.86,2.5193]
[1718293683586,22.5182,146.93,146.86,2.5193]
[1718293683784,22.5182,146.93,146.82,29.0945]
[1718293683785,45.17,146.98,146.82,21.5346]
[1718293684005,287.37,146.99,146.82,21.5346]
[1718293684006,0.17,146.96,146.84,10.0784]
[1718293684182,45.34,146.96,146.82,21.5346]
[1718293684390,2.5191,146.88,146.82,21.5346]
[1718293684687,2.5186,146.91,146.83,2.5197]
[1718293684893,2.5186,146.91,146.81,2.5202]
[1718293684894,0.17,146.91,146.81,2.5202]
[1718293685095,53.2829,146.91,146.78,6.5183]
[1718293685400,53.2829,146.91,146.81,2.5201]
[1718293685401,45.17,146.9,146.81,2.5201]
[1718293685604,27.64,146.92,146.84,2.5196]
[1718293685912,0.17,146.9,146.78,6.5183]
[1718293686091,20.17,146.91,146.82,2.52]
[1718293686286,20.17,146.91,146.79,7.5618]
[1718293686287,20.0,146.91,146.79,7.5618]
[1718293686487,44.0811,146.96,146.78,6.5183]
[1718293686708,5.0361,146.94,146.78,6.5183]
[1718293686909,20.0,146.95,146.79,2.5205]
[1718293686910,7.5559,146.91,146.79,2.5205]
[1718293687120,2.5182,146.93,146.86,2.5192]
[1718293687417,2.5182,146.93,146.82,5.04]
[1718293687418,20.0,146.95,146.85,0.34]
[1718293687623,2.5182,146.93,146.86,2.5192]
[1718293687987,20.52,146.93,146.78,10.0828]
[1718293688183,20.52,146.93,146.78,2.5207]
[1718293688184,47.99,146.89,146.78,2.5207]
[1718293688407,25.7284,146.87,146.76,25.5285]
[1718293688607,2.5198,146.84,146.77,2.5209]
[1718293688801,20.0,146.86,146.76,23.0075]
[1718293689014,2.5197,146.85,146.77,2.5209]
[1718293689226,2.5199,146.83,146.76,23.0075]
[1718293689426,5.0399,146.83,146.72,6.4678]
[1718293689599,2.5207,146.79,146.72,8.9896]
[1718293689797,2.5204,146.8,146.72,8.9896]
[1718293690023,5.0403,146.82,146.72,6.4678]
[1718293690226,5.0403,146.82,146.67,6.0817]
[1718293690227,2.5212,146.76,146.67,6.0817]
[1718293690498,2.521,146.77,146.7,2.5221]
[1718293690701,2.5208,146.78,146.7,2.5221]
[1718293691035,100.0,146.88,146.67,6.0817]
[1718293691328,397.2008,146.92,146.76,22.6892]
[1718293691508,5.0372,146.91,146.78,5.2115]
[1718293691828,2.5196,146.85,146.79,45.51]
[1718293692140,2.5196,146.85,146.78,0.17]
[1718293692310,20.52,146.86,146.77,0.34]
[1718293692506,5.0392,146.85,146.73,0.17]
[1718293692702,5.0408,146.8,146.71,15.3017]
[1718293692925,2.5213,146.75,146.67,6.0817]
[1718293693242,2.5211,146.76,146.68,2.5224]
[1718293693428,5.0413,146.79,146.67,6.0817]
[1718293693429,2.5215,146.74,146.67,6.0817]
[1718293693640,5.0417,146.78,146.66,18.6666343]
[1718293693641,2.5217,146.73,146.66,18.6668343]
[1718293693939,2.5217,146.73,146.66,3.3651343]
[1718293694115,27.47,146.77,146.66,0.8423343]
[1718293694511,2.522,146.71,146.66,0.8423343]
[1718293694743,7.5645,146.74,146.66,0.8423343]
[1718293694954,2.5222,146.7,146.66,0.8423343]
[1718293695117,20.0,146.73,146.66,0.8423343]
[1718293695316,2.5219,146.71,146.66,0.8423343]
[1718293695542,2.5226,146.68,146.66,0.8423343]
[1718293695708,2.5222,146.7,146.66,0.8423343]
[1718293695909,20.0,146.74,146.66,0.8423343]
[1718293696123,0.17,146.73,146.66,0.8423343]
[1718293696334,45.17,146.73,146.66,0.8423343]
[1718293696536,0.17,146.71,146.66,0.8423343]
[1718293696831,45.17,146.71,146.66,0.8423343]
[1718293697144,2.5226,146.68,146.66,0.8423343]
[1718293697519,20.0,146.7,146.66,0.8423343]
[1718293697721,2.5223,146.69,146.66,0.8423343]
[1718293697919,2.5223,146.7,146.66,0.8423343]
[1718293698168,2.5226,146.67,146.66,0.8423343]
[1718293698445,22.5219,146.72,146.66,0.8423343]
[1718293698648,20.0,146.72,146.66,0.8423343]
[1718293698839,27.47,146.73,146.66,0.8423343]
[1718293699164,7.5645,146.74,146.66,0.8423343]
[1718293699333,2.5221,146.7,146.66,0.8423343]
[1718293699526,70.0432,146.73,146.66,0.8423343]
[1718293699527,2.5218,146.72,146.66,0.8423343]
[1718293700027,20.0,146.74,146.67,0.34]
[1718293700337,259.9,146.76,146.66,46.0123343]
[1718293700532,2.5213,146.75,146.68,2.5224]
[1718293700737,259.9,146.76,146.67,45.34]
[1718293700949,2.5213,146.75,146.68,2.5224]
[1718293701524,2.5221,146.71,146.66,0.8423343]
[1718293701744,2.5218,146.72,146.66,0.8423343]
[1718293701942,2.5216,146.73,146.66,3.3651343]
[1718293702142,2.5215,146.74,146.67,2.8626]
[1718293702341,2.5216,146.74,146.67,2.5226]
[1718293702552,2.5219,146.72,146.66,0.8423343]
[1718293702759,20.0,146.75,146.66,0.8423343]
[1718293703060,2.5218,146.72,146.66,0.8423343]
[1718293703430,40.52,146.75,146.66,0.8423343]
[1718293703431,22.5214,146.75,146.68,2.5224]
[1718293703627,20.0,146.75,146.66,45.8423343]
[1718293703830,20.0,146.75,146.67,0.17]
[1718293703831,5.0431,146.74,146.67,0.17]
[1718293704132,2.5218,146.72,146.66,0.8423343]
[1718293704444,40.52,146.75,146.66,0.8423343]
[1718293704445,20.0,146.75,146.66,0.8423343]
[1718293704666,5.042,146.77,146.67,0.34]
[1718293704953,2.5217,146.73,146.67,0.17]
[1718293705139,2.5216,146.73,146.67,0.51]
[1718293705345,5.0425,146.75,146.66,16.2580343]
[1718293705658,2.5218,146.72,146.66,16.2580343]
[1718293706033,20.0,146.75,146.66,16.2580343]
[1718293706252,20.0,146.75,146.67,0.17]
[1718293706427,27.47,146.76,146.7,2.5221]
[1718293706631,120.7911,146.8,146.7,2.5221]
[1718293706632,48.2611,146.8,146.7,2.5221]
[1718293706860,48.2611,146.8,146.67,45.68]
[1718293706861,2.5215,146.74,146.67,45.68]
[1718293707156,22.521,146.77,146.7,2.522]
[1718293707365,7.11688962,146.79,146.67,52.2604]
[1718293707524,53.1242,146.78,146.67,52.2604]
[1718293707729,20.0,146.78,146.67,52.2604]
[1718293707954,10.0828,146.79,146.67,52.2604]
[1718293708255,2.522,146.71,146.66,16.2580343]
[1718293708726,25.5628,146.75,146.66,18.7807343]
[1718293708929,20.52,146.75,146.66,16.2580343]
[1718293709129,47.47,146.8,146.68,5.0447]
[1718293709329,2.5208,146.78,146.68,5.0447]
[1718293709531,2.5208,146.78,146.71,2.5218]
[1718293709729,27.47,146.8,146.69,45.68]
[1718293709973,2.5208,146.78,146.71,2.5219]
[1718293710325,7.11631596,146.82,146.71,10.0878]
[1718293710531,2.5202,146.82,146.75,2.5212]
[1718293710749,2.5202,146.81,146.75,2.5212]
[1718293710932,2.5202,146.81,146.73,2.5214]
[1718293711256,25.5595,146.84,146.73,2.5214]
[1718293711257,2.5205,146.8,146.74,0.51]
[1718293711758,34.22097142,146.86,146.75,5.0424]
[1718293712070,2.5198,146.84,146.77,2.5207]
[1718293712240,12.15287142,146.86,146.77,2.5207]
[1718293712441,7.11387142,146.86,146.77,5.0418]
[1718293712751,2.52,146.83,146.76,48.031]
[1718293712956,12.15182307,146.86,146.77,2.5209]
[1718293713130,2.5198,146.84,146.77,2.5209]
[1718293713565,39.9064,146.87,146.77,2.5209]
[1718293713758,2.5199,146.83,146.76,48.0309]
[1718293714064,2.5198,146.84,146.77,2.5209]
[1718293714432,62.50066626,146.87,146.76,45.51]
[1718293714633,20.52,146.84,146.75,16.292]
[1718293714935,65.0,146.83,146.72,6.6361]
[1718293715154,20.0,146.83,146.77,2.5209]
[1718293715342,0.17,146.82,146.72,6.6361]
[1718293715546,2.5206,146.79,146.72,9.1578]
[1718293715762,50.2104,146.82,146.73,2.5215]
[1718293715763,2.5204,146.8,146.73,2.5215]
[1718293715972,2.5204,146.8,146.72,6.6361]
[1718293716185,30.0812,146.81,146.68,5.0448]
[1718293716462,72.65,146.8,146.66,0.8423343]
[1718293716663,27.31,146.76,146.66,0.8423343]
[1718293716863,5.043,146.74,146.66,0.8423343]
[1718293717044,2.5214,146.75,146.66,0.8423343]
[1718293717248,2.5217,146.73,146.66,3.3650343]
[1718293717465,7.5641,146.75,146.66,0.8423343]
[1718293717646,2.522,146.71,146.66,0.8423343]
[1718293718351,2.5223,146.69,146.66,0.8423343]
[1718293718562,2.5222,146.7,146.66,0.8423343]
[1718293718751,5.0437,146.72,146.66,0.8423343]
[1718293718959,25.5631,146.74,146.66,0.8423343]
[1718293719262,5.0426,146.75,146.66,0.8423343]
[1718293719558,0.17,146.78,146.69,2.5221]
[1718293719775,0.17,146.78,146.66,8.4107343]
[1718293719776,45.34,146.78,146.71,2.5219]
[1718293719975,45.34,146.78,146.67,7.5678]
[1718293719976,20.17,146.77,146.69,2.5222]
[1718293720146,2.5215,146.74,146.68,0.17]
[1718293720458,20.0,146.77,146.66,0.8423343]
[1718293720671,2.5218,146.72,146.67,0.34]
[1718293720834,12.6055,146.76,146.67,2.8626]
[1718293720835,2.5216,146.74,146.67,2.8626]
[1718293721037,2.5215,146.74,146.67,45.34]
[1718293721265,20.0,146.75,146.69,2.5221]
[1718293721475,7.5635,146.76,146.66,0.8423343]
[1718293721762,5.0433,146.73,146.66,0.8423343]
[1718293721948,2.5219,146.71,146.66,0.8423343]
[1718293722367,5.0421,146.77,146.66,0.8423343]
[1718293722541,2.5214,146.75,146.68,2.5224]
[1718293722742,20.0,146.76,146.67,2.6925]
[1718293722963,2.5217,146.73,146.67,2.5226]
[1718293723172,2.5215,146.74,146.67,2.5226]
[1718293723764,2.5215,146.74,146.66,46.0123343]
[1718293724089,2.5217,146.73,146.67,0.17]
[1718293724477,2.5215,146.74,146.67,2.6925]
[1718293724780,2.522,146.71,146.67,0.17]
[1718293724984,2.5224,146.69,146.66,0.8423343]
[1718293725895,2.522,146.71,146.66,0.8423343]
[1718293726188,47.31,146.76,146.67,2.5225]
[1718293726368,47.31,146.76,146.66,0.8423343]
[1718293726369,2.5215,146.74,146.68,2.5224]
[1718293726893,47.31,146.76,146.67,0.17]
[1718293727065,47.31,146.76,146.67,0.51]
[1718293727066,2.522,146.71,146.67,0.51]
[1718293727266,2.5218,146.72,146.67,0.51]
[1718293727488,12.6062,146.76,146.67,48.0326]
[1718293727667,2.5215,146.74,146.68,2.5224]
[1718293728066,5.0424,146.76,146.68,2.5224]
[1718293728067,2.5213,146.75,146.68,2.5224]
[1718293728285,12.6057,146.76,146.67,48.0326]
[1718293728489,2.5217,146.73,146.67,45.51]
[1718293728690,9.63816266,146.77,146.68,5.0449]
[1718293728892,10.0821,146.8,146.69,5.3844]
[1718293729105,2.5209,146.77,146.7,45.17]
[1718293729302,2.5213,146.75,146.69,0.34]
[1718293729594,2.5216,146.73,146.69,0.34]
[1718293729824,2.5215,146.74,146.69,0.34]
[1718293730082,2.5214,146.74,146.69,0.34]
[1718293730277,22.6859,146.79,146.69,0.34]
[1718293730483,2.5213,146.75,146.69,2.8622]
[1718293730705,2.5212,146.76,146.69,2.8622]
[1718293731004,5.0419,146.77,146.69,0.34]
[1718293731194,2.5214,146.74,146.69,0.34]
[1718293731385,2.5216,146.73,146.69,0.17]
[1718293731706,5.043,146.74,146.68,0.17]
[1718293731877,0.17,146.77,146.66,0.8423343]
[1718293732200,0.17,146.75,146.66,0.8423343]
[1718293732385,2.5226,146.67,146.66,0.8423343]
[1718293733011,22.5223,146.69,146.66,0.8423343]
[1718293733188,2.5225,146.68,146.66,0.8423343]
[1718293733387,2.5222,146.7,146.66,0.8423343]
[1718293733582,0.17,146.72,146.66,0.8423343]
[1718293733583,2.5225,146.68,146.66,0.8423343]
[1718293733984,2.5226,146.67,146.66,0.8423343]
[1718293734709,2.5225,146.68,146.66,0.8423343]
[1718293734906,20.0,146.69,146.66,0.8423343]
[1718293735096,20.0,146.71,146.66,0.8423343]
[1718293735510,20.0,146.72,146.66,0.8423343]
[1718293735807,7.5633,146.76,146.66,0.8423343]
[1718293736007,5.0429,146.74,146.66,0.8423343]
[1718293736205,2.5221,146.71,146.66,0.8423343]
[1718293737015,2.5222,146.7,146.66,0.8423343]
[1718293737326,2.5221,146.7,146.66,0.8423343]
[1718293737515,5.0434,146.73,146.66,0.8423343]
[1718293737897,5.0439,146.71,146.66,0.8423343]
[1718293738207,2.5224,146.69,146.66,0.8423343]
[1718293738406,2.5225,146.68,146.66,0.8423343]
[1718293738609,2.5226,146.67,146.66,0.8423343]
[1718293741218,2.5226,146.67,146.57,5.0486]
[1718293741219,2.5236,146.62,146.57,23.1675]
[1718293741394,28.428,146.67,146.57,25.6918]
[1718293741395,33.4735,146.67,146.57,25.6918]
[1718293741602,2.5232,146.64,146.57,23.1675]
[1718293741796,47.36,146.69,146.57,23.1675]
[1718293741797,7.11630755,146.71,146.63,2.5232]
[1718293742017,7.11630755,146.71,146.65,2.5228]
[1718293742322,7.11630755,146.71,146.64,2.5231]
[1718293742323,2.522,146.71,146.64,2.5231]
[1718293742697,2.522,146.71,146.65,2.5229]
[1718293742898,5.041,146.8,146.68,6.1838]
[1718293743095,259.9,146.81,146.69,0.51]
[1718293743333,259.9,146.81,146.75,2.5211]
[1718293743618,259.9,146.81,146.76,2.521]
[1718293743793,259.9,146.81,146.75,15.491]
[1718293743995,259.9,146.81,146.77,2.5208]
[1718293744202,287.26,146.89,146.78,6.5523]
[1718293744423,259.9,146.89,146.79,0.68]
[1718293744631,2.5191,146.88,146.8,2.5203]
[1718293744803,5.0382,146.88,146.78,6.5523]
[1718293745009,2.5193,146.87,146.79,0.68]
[1718293745310,262.4189,146.89,146.82,2.52]
[1718293745620,259.9,146.89,146.83,0.34]
[1718293745826,33.1119,146.92,146.82,0.17]
[1718293746119,2.5187,146.9,146.82,2.69]
[1718293746323,20.52,146.92,146.84,0.17]
[1718293746324,2.5185,146.92,146.84,0.17]
[1718293746529,2.5182,146.93,146.84,15.548]
[1718293746706,2.723541,146.96,146.84,15.548]
[1718293746908,2.5179,146.95,146.87,2.5191]
[1718293747120,38.491,147.0,146.88,0.34]
[1718293747121,32.334,147.0,146.88,0.34]
[1718293747295,2.5172,146.99,146.91,2.5185]
[1718293747494,2.5173,146.98,146.91,2.5185]
[1718293747696,52.854,147.0,146.9,0.51]
[1718293747924,2.5173,146.98,146.91,0.17]
[1718293748131,29.817,147.0,146.92,2.5183]
[1718293748289,29.817,147.0,146.89,6.263]
[1718293748290,27.3,147.0,146.89,6.263]
[1718293748495,127.3,147.0,146.89,6.093]
[1718293748727,20.52,146.96,146.84,15.378]
[1718293748932,20.52,146.92,146.84,15.378]
[1718293749134,5.0381,146.88,146.78,22.0844]
[1718293749361,20.0,146.87,146.78,22.0844]
[1718293749577,27.47,146.91,146.81,2.5201]
[1718293749857,27.47,146.91,146.78,22.0844]
[1718293749858,20.0,146.9,146.78,32.1673]
[1718293750028,2.5185,146.92,146.85,2.5195]
[1718293750225,116.3569,147.01,146.79,100.0]
[1718293750441,116.3569,147.01,146.86,0.17]
[1718293750442,113.8404,147.01,146.86,0.17]
[1718293750650,113.8404,147.01,146.8,2.86335246]
[1718293750651,5.0354,146.96,146.85,0.34]
[1718293750842,20.52,146.97,146.86,0.17]
[1718293751046,2.5178,146.95,146.86,0.34]
[1718293751360,2.5176,146.96,146.88,2.6889]
[1718293751574,2.722926,146.99,146.89,0.51]
[1718293751864,2.5173,146.98,146.9,2.5186]
[1718293752060,2.5173,146.98,146.91,2.8585]
[1718293752273,2.5175,146.97,146.89,2.6887]
[1718293752492,47.82,147.0,146.88,15.4627]
[1718293752493,2.5177,146.96,146.88,15.6327]
[1718293752780,25.5543,146.99,146.89,0.34]
[1718293753079,2.5176,146.97,146.9,2.5186]
[1718293753291,47.82,147.0,146.89,3.0288]
[1718293753292,2.5177,146.96,146.89,3.0288]
[1718293753598,20.52,146.98,146.88,15.2927]
[1718293753786,2.518,146.94,146.88,15.2927]
[1718293753984,20.0,146.97,146.88,15.2927]
[1718293753985,40.52,146.97,146.88,15.2927]
[1718293754294,2.518,146.94,146.88,15.2927]
[1718293754874,2.5177,146.96,146.89,2.5188]
[1718293755054,20.0,146.97,146.88,15.2927]
[1718293755055,50.5901,146.97,146.88,15.2927]
[1718293755256,5.0361,146.94,146.81,15.1337]
[1718293755467,2.5188,146.9,146.82,2.5199]
[1718293755777,2.5188,146.9,146.81,15.1337]
[1718293755778,2.5184,146.92,146.84,2.5195]
[1718293755976,20.0,146.93,146.81,15.1337]
[1718293756294,45.17,146.96,146.89,2.5187]
[1718293756295,2.5176,146.96,146.89,2.5187]
[1718293756589,27.3,147.0,146.82,12.77298556]
[1718293756591,2.5182,146.93,146.82,12.77298556]
[1718293756786,5.0357,146.95,146.84,2.5197]
[1718293756990,10.0706,146.97,146.82,7.73278556]
[1718293756991,15.1057,146.97,146.82,7.73278556]
[1718293757193,2.5181,146.94,146.87,2.5191]
[1718293757355,2.5182,146.93,146.83,5.0396]
[1718293757557,2.5185,146.91,146.84,2.5197]
[1718293757774,27.5533,146.96,146.82,2.69298556]
[1718293757775,20.0,146.94,146.82,2.69298556]
[1718293757987,20.0,146.96,146.87,5.0384]
[1718293758188,27.3,147.0,146.88,6.067]
[1718293758189,2.5184,146.92,146.88,6.067]
[1718293758382,7.7236,146.95,146.83,6.067]
[1718293758681,7.5534,146.96,146.83,6.067]
[1718293758682,5.2066,146.93,146.83,6.067]
[1718293758880,2.5186,146.91,146.83,8.5867]
[1718293759178,2.518,146.94,146.86,2.5193]
[1718293759563,65.0,146.95,146.84,2.5197]
[1718293759861,2.5184,146.92,146.84,2.5197]
[1718293760063,0.17,146.94,146.84,2.5197]
[1718293760294,26.2363,146.94,146.83,6.237]
[1718293760589,2.5188,146.9,146.83,6.067]
[1718293760763,2.5188,146.9,146.83,8.5869]
[1718293760962,93.0747,146.93,146.83,6.067]
[1718293761164,2.519,146.89,146.83,6.067]
[1718293761385,2.519,146.88,146.83,6.067]
[1718293761692,2.5193,146.87,146.83,6.067]
[1718293761872,20.0,146.91,146.83,6.067]
[1718293762077,2.5186,146.91,146.83,8.5868]
[1718293762376,2.5186,146.91,146.83,6.067]
[1718293762585,20.0,146.92,146.83,6.067]
[1718293762787,20.0,146.92,146.84,2.5196]
[1718293762974,2.5186,146.91,146.83,6.067]
[1718293763283,2.5185,146.91,146.84,0.51]
[1718293763486,33.3778,146.96,146.85,0.17]
[1718293763487,27.3,146.96,146.85,0.17]
[1718293763858,10.0744,146.91,146.83,6.067]
[1718293764063,2.5191,146.88,146.83,6.067]
[1718293764361,2.5192,146.87,146.81,15.1337]
[1718293764560,5.0375,146.9,146.81,15.1337]
[1718293764771,45.0,146.89,146.81,15.1337]
[1718293764973,2.5193,146.87,146.81,15.1337]
[1718293765263,10.0761,146.89,146.81,15.1337]
[1718293765459,0.17,146.87,146.81,15.1337]
[1718293765687,10.2471,146.87,146.78,6.5855]
[1718293765883,2.5198,146.84,146.78,6.5855]
[1718293766301,2.5196,146.85,146.78,9.1062]
[1718293766593,2.519,146.89,146.82,2.5199]
[1718293766770,22.519,146.88,146.79,5.0409]
[1718293766969,27.29,146.93,146.82,10.0803]
[1718293767285,2.5184,146.92,146.85,2.5195]
[1718293767493,2.5185,146.91,146.86,0.17]
[1718293767789,2.5188,146.9,146.84,0.34]
[1718293768177,2.5189,146.89,146.83,0.17]
[1718293768372,2.5189,146.89,146.82,2.5199]
[1718293769592,2.5189,146.89,146.83,0.51]
[1718293769783,42.6659,146.92,146.83,0.51]
[1718293769784,2.5188,146.9,146.83,3.0298]
[1718293770177,2.5193,146.87,146.83,0.51]
[1718293770378,2.5193,146.87,146.8,2.5203]
[1718293770379,40.52,146.92,146.78,6.5855]
[1718293770570,15.1141,146.89,146.79,0.34]
[1718293770773,20.0,146.88,146.82,2.52]
[1718293770977,20.0,146.9,146.83,0.34]
[1718293771195,20.0,146.92,146.86,18.5253]
[1718293771498,5.0358,146.95,146.86,18.5253]
[1718293771671,2.5183,146.93,146.86,18.5253]
[1718293771870,5.0358,146.95,146.86,18.5253]
[1718293771871,2.5183,146.92,146.86,18.5253]
[1718293772075,7.5531,146.96,146.86,16.006]
[1718293772076,20.52,146.96,146.86,16.006]
[1718293772269,2.5188,146.9,146.86,16.006]
[1718293772476,5.0358,146.95,146.86,16.006]
[1718293772691,2.5181,146.94,146.88,6.2553]
[1718293772999,2.5181,146.94,146.88,8.7743]
[1718293773300,2.5178,146.95,146.9,0.17]
[1718293773474,17.6226,146.97,146.89,0.51]
[1718293773793,2.518,146.95,146.89,0.17]
[1718293773976,15.1052,146.97,146.89,0.17]
[1718293774179,2.5177,146.96,146.9,2.5187]
[1718293774482,2.5176,146.97,146.9,2.5187]
[1718293774700,2.5174,146.98,146.91,2.5185]
[1718293775005,5.0348,146.98,146.89,0.68]
[1718293775306,2.5179,146.95,146.9,0.34]
[1718293775603,10.0674,147.01,146.92,2.5183]
[1718293775773,10.0674,147.01,146.88,6.2553]
[1718293775774,2.5176,146.97,146.9,2.5186]
[1718293775979,17.6192,147.0,146.88,6.2553]
[1718293775980,5.0341,147.0,146.88,6.2553]
[1718293776170,2.5174,146.98,146.89,5.0376]
[1718293776369,2.5175,146.97,146.9,2.5185]
[1718293776714,12.5852,147.0,146.9,2.5185]
[1718293776715,5.0344,146.99,146.9,2.5186]
[1718293777073,2.5178,146.95,146.89,0.51]
[1718293777274,2.5184,146.92,146.88,6.2553]
[1718293777507,2.5182,146.93,146.88,6.2553]
[1718293777880,2.5184,146.92,146.88,6.2553]
[1718293778305,2.519,146.89,146.86,16.006]
[1718293778482,2.5184,146.92,146.86,18.5253]
[1718293778896,20.0,146.94,146.87,2.519]
[1718293779098,22.5181,146.94,146.88,2.519]
[1718293779325,12.5882,146.97,146.86,18.5253]
[1718293779326,2.5183,146.93,146.86,18.5253]
[1718293779610,2.5178,146.95,146.89,2.5188]
[1718293779773,2.5179,146.95,146.88,2.6889]
[1718293779974,12.5875,146.97,146.89,0.17]
[1718293780207,12.5875,146.97,146.91,2.5185]
[1718293780208,2.5176,146.97,146.91,2.5185]
[1718293780421,2.5173,146.98,146.92,2.5183]
[1718293780713,2.5173,146.98,146.92,2.5182]
[1718293780913,20.52,147.01,146.9,0.34]
[1718293781124,2.5173,146.99,146.92,2.5182]
[1718293781279,17.6194,147.0,146.91,0.17]
[1718293781612,12.5848,147.01,146.91,0.17]
[1718293781823,2.5172,146.99,146.93,2.5182]
[1718293782519,2.517,147.0,146.92,6.0224]
[1718293782681,20.0,147.01,146.93,2.8581]
[1718293782993,2.5172,146.99,146.93,2.8581]
[1718293783502,2.5173,146.98,146.93,0.17]
[1718293783888,2.5172,146.99,146.93,0.17]
[1718293784095,2.5172,146.99,146.93,2.8582]
[1718293784502,2.517,147.0,146.94,2.6879]
[1718293784704,2.5171,147.0,146.95,0.17]
[1718293784884,2.5171,146.99,146.94,0.17]
[1718293785082,2.5171,146.99,146.94,0.34]
[1718293785278,20.0,147.01,146.94,0.34]
[1718293785516,2.5172,146.99,146.93,2.6881]
[1718293785925,2.517,147.0,146.94,2.5179]
[1718293786214,2.517,147.0,146.94,2.518]
[1718293786391,20.0,147.01,146.93,0.34]
[1718293786582,2.5172,146.99,146.94,0.17]
[1718293786986,2.517,147.0,146.94,2.858]
[1718293787303,2.517,147.0,146.95,15.7012]
[1718293787609,2.5171,147.0,146.95,15.7012]